bitfinex-derivatives/quotes_SOLF0:USTF0_20250216
["timestamp","ask_amount","ask_price","bid_price","bid_amount"]
[1739713555409,1.6281,191.46,191.22,0.96030418]
[1739713555610,0.03926074,191.3,191.22,0.96030418]
[1739713555910,143.16771714,191.41,191.24,0.03624044]
[1739713556116,143.16771714,191.41,191.22,0.96030418]
[1739713556315,0.03331216,191.34,191.31,0.03399709]
[1739713556525,143.16771714,191.41,191.31,0.03399709]
[1739713556713,0.03420419,191.34,191.31,0.03399709]
[1739713556917,143.16771714,191.41,191.31,0.03399709]
[1739713557215,0.03437765,191.34,191.31,0.03399709]
[1739713557415,0.03814365,191.34,191.31,0.03399709]
[1739713591162,143.16771714,191.38,191.31,0.03399709]
[1739713591660,143.16771714,191.4,191.31,0.03399709]
[1739713594057,143.16771714,191.43,191.31,0.03399709]
[1739713594263,143.16771714,191.43,191.3,1.6591]
[1739713594462,143.16771714,191.43,191.31,0.96000661]
[1739713594664,143.16771714,191.43,191.35,0.0336602]
[1739713595553,144.79581714,191.46,191.35,0.0336602]
[1739713596363,1.6281,191.46,191.35,0.0336602]
[1739713607263,1.6821,191.47,191.35,0.0336602]
[1739713607464,1.6821,191.47,191.32,1.6213]
[1739713607672,1.6821,191.47,191.39,0.03919957]
[1739713618576,1.6821,191.47,191.19,195.0]
[1739713618880,1.6821,191.47,191.24,3.1904]
[1739713619583,0.03768279,191.39,191.35,0.03913723]
[1739713619782,143.16771714,191.46,191.24,3.1904]
[1739713620082,0.03831437,191.39,191.35,0.03430292]
[1739713620283,0.03831437,191.39,191.24,3.1904]
[1739713620480,1.561,191.44,191.24,3.1904]
[1739713620680,143.16771714,191.43,191.24,3.1904]
[1739713621480,0.03560427,191.37,191.33,0.03552922]
[1739713622881,0.03560427,191.37,191.24,3.1904]
[1739713623082,0.03560427,191.37,191.21,1.6675]
[1739713624183,0.03560427,191.37,191.3,0.03362074]
[1739713625381,0.03560427,191.37,191.21,1.6675]
[1739713625586,0.03560427,191.37,191.2,3.1116]
[1739713626678,0.03560427,191.37,191.3,0.03985341]
[1739713626986,0.03560427,191.37,191.2,3.1116]
[1739713627985,0.03560427,191.37,191.3,0.03437682]
[1739713629787,1.66290427,191.37,191.3,0.03437682]
[1739713629986,0.03560427,191.37,191.3,0.03437682]
[1739713630183,143.16771714,191.42,191.3,5.96357631]
[1739713630382,143.16771714,191.42,191.31,0.96039949]
[1739713631279,0.03732665,191.38,191.35,0.03947316]
[1739713637794,1.6811,191.54,191.35,0.03947316]
[1739713638094,1.6811,191.54,191.31,0.96039949]
[1739713638796,0.03886976,191.44,191.41,0.03794036]
[1739713638995,1.6811,191.54,191.31,0.96039949]
[1739713639198,0.03860845,191.44,191.41,0.03682036]
[1739713639392,1.6811,191.54,191.31,0.96039949]
[1739713639700,0.03559374,191.44,191.41,0.03885565]
[1739713639893,1.6811,191.54,191.31,0.96039949]
[1739713640099,0.03293531,191.39,191.36,0.03589375]
[1739713640302,1.6811,191.54,191.32,0.95955563]
[1739713640503,1.6811,191.54,191.36,0.03710249]
[1739713640504,0.03790534,191.39,191.36,0.03710249]
[1739713640697,1.6811,191.54,191.31,0.95955563]
[1739713640999,1.6811,191.54,191.32,0.95955563]
[1739713641195,1.6811,191.54,191.31,0.95955563]
[1739713641397,1.6811,191.54,191.32,0.95955563]
[1739713641595,1.6811,191.54,191.33,0.95955563]
[1739713641801,1.6811,191.54,191.31,0.95955563]
[1739713642101,0.03999426,191.44,191.41,0.03852354]
[1739713642302,1.5811,191.53,191.32,0.95950387]
[1739713642600,0.03560159,191.44,191.41,0.03884246]
[1739713642796,0.03560159,191.44,191.32,0.95950387]
[1739713642997,0.03543301,191.4,191.37,0.03806486]
[1739713643203,1.5811,191.53,191.34,0.95950387]
[1739713643400,1.5811,191.53,191.35,0.95950387]
[1739713643593,1.5811,191.53,191.36,117.2]
[1739713643794,1.5811,191.53,191.37,0.95936598]
[1739713644204,1.5811,191.53,191.43,0.03602567]
[1739713644205,0.03379983,191.47,191.43,0.03602567]
[1739713656108,0.03379983,191.47,191.43,0.03602567]
[1739713661211,0.03379983,191.47,191.43,0.99528232]
[1739713661414,0.03379983,191.47,191.44,0.95925665]
[1739713661609,0.03379983,191.47,191.45,1.5977]
[1739713661812,3.2669,191.59,191.46,0.95925665]
[1739713662004,3.2669,191.59,191.46,4.23865665]
[1739713662211,3.2669,191.59,191.47,0.95925665]
[1739713663114,0.02027605,191.55,191.51,0.03336651]
[1739713713746,0.02027605,191.55,191.39,1.5761]
[1739713713948,160.44181714,191.62,191.41,6.94]
[1739713714152,160.44181714,191.62,191.39,1.5761]
[1739713714346,160.44181714,191.62,191.4,0.95937032]
[1739713714949,0.03860216,191.53,191.49,0.03576648]
[1739713715149,0.03860216,191.53,191.4,0.95937032]
[1739713715342,193.0,191.61,191.4,0.95937032]
[1739713715544,336.16771714,191.6,191.4,0.95937032]
[1739713715944,3.3035,191.59,191.4,0.95937032]
[1739713716348,0.03896174,191.51,191.48,0.03768239]
[1739713716751,0.03293885,191.51,191.48,0.03768239]
[1739713717150,0.03293885,191.51,191.29,13.79082946]
[1739713717347,15.68,191.57,191.29,13.79082946]
[1739713717547,15.68,191.55,191.26,3.2695]
[1739713718453,0.03976306,191.46,191.43,0.0340146]
[1739713718654,0.03976306,191.46,191.35,0.95978624]
[1739713718847,143.16771714,191.53,191.35,0.95978624]
[1739713719047,194.5448,191.52,191.26,3.2695]
[1739713719250,194.5448,191.52,191.27,0.95970952]
[1739713719751,0.03718503,191.41,191.38,0.03463119]
[1739713720251,0.03452423,191.41,191.38,0.03587988]
[1739713723952,1.5312,191.51,191.38,0.03587988]
[1739713724359,1.5312,191.51,191.35,0.95970952]
[1739713725151,0.03912847,191.45,191.41,0.03629998]
[1739713740062,0.03912847,191.45,191.35,0.9595855]
[1739713740364,0.03912847,191.45,191.25,3.2361]
[1739713740563,15.68,191.54,191.31,0.959924]
[1739713740865,193.0,191.53,191.32,1.568]
[1739713741264,193.0,191.53,191.41,0.03770774]
[1739713741265,0.03435009,191.44,191.41,0.03770774]
[1739713741560,193.0,191.53,191.41,0.0336585]
[1739713741862,193.0,191.52,191.32,1.568]
[1739713742065,0.03910112,191.49,191.45,0.04007084]
[1739713742253,144.84171714,191.51,191.32,1.568]
[1739713742454,144.84171714,191.51,191.33,0.95984125]
[1739713742665,0.03974206,191.43,191.4,0.03385696]
[1739713742963,144.84171714,191.51,191.4,0.03385696]
[1739713743369,0.03924504,191.47,191.15,208.79082946]
[1739713743662,210.3656,191.49,191.18,4.7504]
[1739713744355,208.68,191.48,191.18,4.7504]
[1739713744561,0.0338043,191.41,191.38,0.03575956]
[1739713744762,0.0338043,191.41,191.18,4.7504]
[1739713744955,15.68,191.48,191.18,4.7504]
[1739713745360,1.6856,191.49,191.18,4.7504]
[1739713745558,143.16771714,191.44,191.18,4.7504]
[1739713745865,0.03614189,191.39,191.35,0.03526046]
[1739713770276,0.03614189,191.39,191.27,3.2059]
[1739713771078,0.03614189,191.39,191.26,117.22]
[1739713771579,0.03614189,191.39,191.33,0.0362499]
[1739713771781,0.03614189,191.39,191.26,117.22]
[1739713773082,0.03614189,191.39,191.33,0.03622245]
[1739713773384,0.03614189,191.39,191.26,117.22]
[1739713773783,0.03614189,191.39,191.15,117.24]
[1739713774580,0.03614189,191.39,191.33,0.03416327]
[1739713774783,0.03614189,191.39,191.15,117.24]
[1739713775981,0.03614189,191.39,191.33,0.03955551]
[1739713780081,1.57174189,191.39,191.33,0.03955551]
[1739713783583,0.03614189,191.39,191.33,0.03955551]
[1739713787783,0.03614189,191.39,191.13,13.76119664]
[1739713787988,18.8148,191.45,191.23,1.6434]
[1739713788392,15.68,191.42,191.23,1.6434]
[1739713788592,1.6184,191.41,191.23,1.6434]
[1739713788993,0.03754364,191.34,191.3,0.03334663]
[1739713791688,0.03754364,191.34,191.05,117.26]
[1739713791894,0.03754364,191.34,191.15,3.2683]
[1739713792092,15.68,191.4,191.16,1.5388]
[1739713792292,198.68,191.4,191.16,1.5388]
[1739713792996,0.0361212,191.3,191.26,0.03990682]
[1739713793187,198.68,191.4,191.16,1.5388]
[1739713793392,0.03955497,191.25,191.21,0.03594548]
[1739713793695,198.68,191.4,191.16,1.5388]
[1739713793894,0.03578755,191.25,191.21,0.03400832]
[1739713794095,15.68,191.38,191.16,1.5388]
[1739713794295,15.68,191.38,191.21,0.03346465]
[1739713794296,0.0382595,191.25,191.21,0.03346465]
[1739713794496,3.1989,191.37,191.16,1.5388]
[1739713794699,0.03510346,191.25,191.21,0.03516376]
[1739713794892,3.1989,191.37,191.16,1.5388]
[1739713795096,0.03862088,191.25,191.21,0.03845682]
[1739713795292,3.1989,191.37,191.16,1.5388]
[1739713795597,3.1989,191.37,191.21,0.03645509]
[1739713795598,0.03432758,191.25,191.21,0.03645509]
[1739713795799,3.1989,191.37,191.16,1.5388]
[1739713795992,0.03749256,191.25,191.19,0.0335907]
[1739713796198,3.1989,191.37,191.16,1.5388]
[1739713796398,0.03871923,191.24,191.2,0.03916233]
[1739713796599,3.1989,191.37,191.16,1.5388]
[1739713796901,0.03963081,191.24,191.2,0.0393944]
[1739713797094,193.0,191.36,191.16,1.5388]
[1739713797294,193.0,191.35,191.16,1.5388]
[1739713797500,193.0,191.35,191.24,0.03844373]
[1739713797802,0.03347495,191.28,191.24,0.03844373]
[1739713797996,193.0,191.34,191.16,1.5388]
[1739713798198,0.03611604,191.28,191.24,0.03579212]
[1739713798402,193.0,191.33,191.16,1.5388]
[1739713798603,0.03304559,191.24,191.2,0.03518803]
[1739713798796,0.03304559,191.24,191.17,0.96063789]
[1739713799002,0.03509534,191.22,191.19,0.0331725]
[1739713799202,193.0,191.33,191.17,0.96063789]
[1739713799403,0.03471068,191.21,191.18,0.03825917]
[1739713799599,193.0,191.33,191.16,1.5388]
[1739713799903,0.03431652,191.21,191.18,0.03751262]
[1739713800097,0.03431652,191.21,191.16,1.5388]
[1739713800098,193.0,191.33,191.16,1.5388]
[1739713800298,0.03952714,191.21,191.18,0.03923295]
[1739713800606,193.0,191.33,191.16,1.5388]
[1739713800900,193.0,191.33,191.18,0.03561944]
[1739713801102,0.03718699,191.26,191.16,1.5388]
[1739713801303,0.03718699,191.26,191.24,0.03656516]
[1739713801504,0.03718699,191.26,191.16,1.5388]
[1739713801699,0.03718699,191.26,191.23,0.0335181]
[1739713801899,0.03718699,191.26,191.16,1.5388]
[1739713802503,0.03718699,191.26,191.19,0.03455252]
[1739713802802,193.0,191.33,191.19,0.03455252]
[1739713803005,1.6247,191.37,191.16,6.99826582]
[1739713803400,1.6247,191.37,191.16,1.5388]
[1739713803605,1.6247,191.37,191.17,0.96041899]
[1739713804001,0.03552054,191.29,191.25,0.03518439]
[1739713804204,0.03552054,191.29,191.17,0.96041899]
[1739713804205,1.6247,191.37,191.17,0.96041899]
[1739713804507,0.03530475,191.29,191.25,0.03539111]
[1739713804901,193.0,191.36,191.25,0.039146]
[1739713805106,0.03492213,191.29,191.25,0.039146]
[1739713807505,1.6247,191.37,191.25,0.039146]
[1739713807700,1.6247,191.37,191.17,0.96043344]
[1739713807896,1.6247,191.37,191.17,2.00662269]
[1739713808105,1.6247,191.37,191.18,0.96043344]
[1739713808611,1.6247,191.37,191.17,1.04618925]
[1739713808612,1.6247,191.37,191.19,0.96029465]
[1739713808909,0.03937481,191.29,191.26,0.03471295]
[1739713809102,1.6247,191.37,191.26,0.03471295]
[1739713809300,0.03646552,191.29,191.26,0.03471295]
[1739713809503,1.6247,191.37,191.26,0.03471295]
[1739713809706,0.03401411,191.29,191.26,0.03471295]
[1739713809907,1.6247,191.37,191.26,0.03471295]
[1739713810512,0.03332844,191.33,191.26,0.03471295]
[1739713821819,193.0,191.32,191.26,0.03471295]
[1739713827522,193.0,191.32,191.17,1.04618925]
[1739713827724,31.35,191.3,191.02,13.76119664]
[1739713827918,1.5914,191.29,191.02,13.76119664]
[1739713828327,1.5914,191.29,190.99,144.63169093]
[1739713828819,0.03421337,191.16,191.12,0.04008106]
[1739713829122,15.68,191.27,190.99,144.63169093]
[1739713829326,0.03789368,191.16,191.12,0.03698853]
[1739713829623,1.6025,191.26,190.91,13.76119664]
[1739713829823,0.0368387,191.16,191.12,0.03401661]
[1739713830126,0.03295851,191.16,191.12,0.0366263]
[1739713831825,0.03295851,191.16,190.93,0.9613661]
[1739713832221,1.5348,191.25,190.93,0.9613661]
[1739713832718,1.5348,191.25,190.94,5.88534946]
[1739713832923,1.5348,191.25,190.95,2.0087607]
[1739713833124,0.03818234,191.11,191.08,0.03423557]
[1739713833322,193.0,191.24,191.0,117.36]
[1739713833516,193.0,191.24,191.01,7.1]
[1739713833721,193.0,191.24,191.02,3.36660567]
[1739713833917,193.0,191.24,191.02,3.3321]
[1739713834123,193.0,191.24,191.03,1.65]
[1739713834822,0.03690858,191.15,191.12,0.03811102]
[1739713835021,193.0,191.24,191.03,1.65]
[1739713835325,193.0,191.24,191.12,0.03828104]
[1739713835326,0.03890463,191.15,191.12,0.03828104]
[1739713835721,15.68,191.22,190.95,1.0473946]
[1739713835921,1.5348,191.25,190.96,3.3376]
[1739713836125,1.5348,191.25,190.97,1.6445]
[1739713836126,17.2148,191.25,190.97,1.6445]
[1739713836720,1.5348,191.25,190.97,1.6445]
[1739713836928,0.03333578,191.13,191.09,0.03874612]
[1739713837229,1.6492,191.24,190.97,1.6445]
[1739713837422,0.04023733,191.13,191.09,0.03885161]
[1739713837618,0.04023733,191.13,190.98,0.96113251]
[1739713837818,1.6492,191.24,190.99,0.96113251]
[1739713838025,1.6492,191.24,191.09,0.03601849]
[1739713838227,0.03477766,191.13,191.09,0.03601849]
[1739713838425,1.6492,191.24,191.02,0.96113251]
[1739713838624,0.03824256,191.13,191.09,0.03423487]
[1739713839027,1.6492,191.24,191.04,4.28419467]
[1739713839227,0.03657291,191.13,191.09,0.03320407]
[1739713839425,0.03657291,191.13,191.05,0.96119467]
[1739713839631,0.03441319,191.11,191.07,0.03865297]
[1739713839824,1.6492,191.24,191.05,0.96119467]
[1739713840028,1.6492,191.24,191.07,0.03835277]
[1739713840227,0.03771345,191.11,191.07,0.03835277]
[1739713840432,1.6492,191.24,191.05,0.96119467]
[1739713840630,0.0343484,191.11,191.07,0.03538779]
[1739713840825,193.0,191.23,191.05,0.96119467]
[1739713841131,0.03932758,191.11,191.05,0.96119467]
[1739713841327,193.0,191.22,191.12,0.03457969]
[1739713841631,0.03608775,191.19,191.05,0.96119467]
[1739713841830,193.0,191.21,191.15,0.03601295]
[1739713842133,0.03687618,191.14,191.06,0.96116888]
[1739713842333,193.0,191.21,191.16,0.03912504]
[1739713842532,193.0,191.21,191.06,0.9611517]
[1739713842731,0.03379033,191.2,191.17,0.03609687]
[1739713842931,0.03379033,191.2,191.04,3.323]
[1739713842932,193.0,191.21,191.05,0.96115382]
[1739713843134,193.0392047,191.2,191.17,0.03941954]
[1739713843435,193.03791114,191.2,191.17,0.03468017]
[1739713847334,193.03791114,191.2,191.07,0.96110905]
[1739713847538,193.0,191.19,191.05,1.6685]
[1739713847740,3.0953,191.18,191.06,0.96112972]
[1739713848040,3.0953,191.18,191.05,1.6685]
[1739713848442,0.03877792,191.13,191.1,0.03697151]
[1739713853038,193.0,191.12,191.06,0.96118814]
[1739713853339,193.0,191.12,190.89,1.5462]
[1739713853541,193.0,191.12,190.97,1.5378]
[1739713853736,193.0,191.12,190.98,1.5462]
[1739713854138,193.0,191.12,190.99,0.9614942]
[1739713854443,0.0349895,191.07,190.99,0.9614942]
[1739713855340,0.0349895,191.07,190.78,3.0]
[1739713855534,3.0953,191.18,190.96,0.96168548]
[1739713855841,0.03567064,191.03,190.97,1.6486]
[1739713856036,3.0953,191.18,190.98,0.96168548]
[1739713856233,0.03535672,191.02,190.98,0.96168548]
[1739713856541,0.03546947,191.02,190.98,0.96168548]
[1739713856742,3.0953,191.18,190.98,0.96168548]
[1739713857944,3.0953,191.18,191.06,0.03854109]
[1739713857945,0.0395958,191.1,191.06,0.03854109]
[1739713858242,3.0953,191.18,190.98,0.96168548]
[1739713858444,0.03429696,191.1,191.06,0.03361421]
[1739713858946,0.03361788,191.1,191.06,0.03599796]
[1739713861742,0.03361788,191.1,190.8,181.74515776]
[1739713861940,0.03361788,191.1,189.7,41.48916116]
[1739713862143,5.23,191.08,190.14,469.44801496]
[1739713862341,5.23,191.06,190.28,38.80437689]
[1739713862545,0.94446991,190.55,190.38,38.80437689]
[1739713862743,0.94446991,190.51,190.34,38.80437689]
[1739713862941,0.03350674,190.48,190.38,38.80437689]
[1739713863244,10.53242459,190.54,190.28,117.4]
[1739713863444,5.03265826,190.37,190.29,0.96430486]
[1739713863745,408.28252456,190.79,190.3,1.05097214]
[1739713863948,18.09528566,190.75,190.6,38.58559091]
[1739713864250,18.09528566,190.75,190.61,61.6125876]
[1739713864251,17.04679287,190.74,190.61,61.6125876]
[1739713864446,1.04849279,190.75,190.39,690.62]
[1739713864447,0.03726808,190.69,190.66,0.03673448]
[1739713864642,73.13733981,190.74,190.67,130.57696476]
[1739713864846,0.03867093,190.69,190.68,130.57696476]
[1739713865048,73.13733981,190.74,190.68,130.57696476]
[1739713865243,0.03408101,190.7,190.69,13.17696476]
[1739713865441,73.13733981,190.74,190.69,26.28127365]
[1739713865645,73.13733981,190.73,190.7,21.04427365]
[1739713865847,73.13733981,190.73,190.68,94.00844789]
[1739713866149,15.68,190.72,190.68,94.00844789]
[1739713866453,88.81733981,190.72,190.68,20.63304426]
[1739713866644,88.85426899,190.72,190.68,15.63026391]
[1739713867247,167.72863501,190.71,190.68,15.63026391]
[1739713867447,167.72863501,190.71,190.65,117.48]
[1739713867448,152.04863501,190.71,190.65,117.48]
[1739713867751,167.72863501,190.71,190.65,117.48]
[1739713868052,73.13733981,190.7,190.65,117.48]
[1739713868253,73.13733981,190.7,190.65,70.58920827]
[1739713868650,0.03817029,190.69,190.66,0.03469584]
[1739713869154,73.1755101,190.69,190.66,0.03469584]
[1739713869356,0.93379276,190.86,190.66,0.03469584]
[1739713869555,2.61932251,190.85,190.67,117.54]
[1739713869754,1.6151,191.08,190.68,3.189]
[1739713870054,2.61928428,191.07,190.68,3.189]
[1739713870362,2.61928428,191.06,190.68,3.189]
[1739713870549,661.95194788,190.77,190.68,3.189]
[1739713870745,555.65274788,190.77,190.69,0.96229015]
[1739713871048,542.98114788,190.77,190.71,0.03817029]
[1739713871256,0.0376657,190.75,190.71,0.03817029]
[1739713874449,0.0376657,190.75,190.71,1.60817029]
[1739713875254,0.0376657,190.75,190.71,5.79817029]
[1739713877654,209.03745723,190.84,190.71,5.79817029]
[1739713877849,147.03745723,190.84,190.71,5.76]
[1739713878049,147.03745723,190.84,190.71,9.95]
[1739713878749,85.07540874,190.84,190.76,0.03690466]
[1739713879452,15.68,191.0,190.76,0.03690466]
[1739713879652,1.30894202,190.99,190.76,0.03690466]
[1739713879848,1.30894202,190.98,190.72,0.96206655]
[1739713880050,0.03711761,190.89,190.86,0.03306984]
[1739713880449,139.82152473,190.88,190.72,0.96206655]
[1739713880651,139.82152473,190.88,190.86,0.03878186]
[1739713880953,139.82152473,190.88,190.82,117.52]
[1739713881356,0.0359057,190.87,190.83,0.03403185]
[1739713881657,356.53369315,190.87,190.83,0.03403185]
[1739713883457,216.71216842,190.87,190.83,0.03403185]
[1739713884257,336.06275938,190.98,190.83,0.03403185]
[1739713884657,336.06275938,190.98,190.82,117.52]
[1739713885259,204.5599405,190.98,190.82,117.52]
[1739713885459,0.03512096,190.92,190.88,0.03308242]
[1739713886862,0.03512096,190.92,190.89,117.5]
[1739713887264,0.03512096,190.92,190.89,121.69]
[1739713887659,195.17591213,190.98,190.9,13.5817518]
[1739713888059,195.17591213,190.98,190.91,13.5817518]
[1739713888860,0.03517296,190.96,190.93,0.03777777]
[1739713889058,1.6837,191.04,190.93,0.03777777]
[1739713889255,0.0370472,190.96,190.94,13.5817518]
[1739713889455,1.6837,191.04,190.94,13.5817518]
[1739713889662,0.0343243,190.97,190.94,13.5817518]
[1739713889856,1.6837,191.04,190.95,13.5817518]
[1739713890059,0.03603258,190.97,190.95,13.5817518]
[1739713890362,1.6837,191.04,190.95,13.5817518]
[1739713890564,0.0330263,190.98,190.96,13.5817518]
[1739713890758,1.6837,191.04,190.96,13.5817518]
[1739713890963,0.03316947,190.99,190.96,13.5817518]
[1739713891164,0.03316947,190.99,190.97,13.5817518]
[1739713891457,0.03316947,190.99,190.98,13.5817518]
[1739713892766,0.03316947,190.99,190.98,62.58863503]
[1739713892963,15.67,191.22,190.98,62.58863503]
[1739713892964,17.45351229,191.22,190.98,62.58863503]
[1739713893167,3.40127303,191.21,190.98,62.58863503]
[1739713893369,3.40127303,191.2,190.98,62.58863503]
[1739713893662,15.68,191.18,190.99,13.5817518]
[1739713893866,3.40127303,191.17,190.99,13.5817518]
[1739713894067,0.03399313,191.1,191.07,0.03614141]
[1739713894369,17.45351229,191.23,191.0,13.5817518]
[1739713894561,19.07098102,191.22,191.07,0.03417572]
[1739713894761,15.68,191.2,191.0,13.5817518]
[1739713894966,15.68,191.18,191.01,13.5817518]
[1739713895167,1.30806962,191.17,191.01,13.5817518]
[1739713895462,1.30806962,191.16,191.01,13.5817518]
[1739713895661,1.30806962,191.15,191.02,13.5817518]
[1739713895858,0.03635202,191.1,191.07,0.03917194]
[1739713896057,15.68,191.26,191.02,13.5817518]
[1739713896267,0.03365294,191.1,191.08,13.5817518]
[1739713896566,15.68,191.24,191.08,13.5817518]
[1739713896766,0.03700852,191.11,191.08,13.5817518]
[1739713897068,0.03457745,191.11,191.08,13.5817518]
[1739713897271,0.03457745,191.11,191.09,13.5817518]
[1739713897771,0.03457745,191.11,191.1,13.5817518]
[1739713899164,0.03457745,191.11,191.1,8.5149518]
[1739713899468,0.03457745,191.11,191.09,1.57]
[1739713899770,0.03457745,191.11,191.08,0.03598767]
[1739713900067,0.03457745,191.11,191.04,20.93]
[1739713900660,0.03457745,191.11,191.04,25.11]
[1739713901070,0.03457745,191.11,191.06,0.03815086]
[1739713906272,0.03457745,191.11,191.07,4.18]
[1739713906473,0.03457745,191.11,191.08,0.96099197]
[1739713907072,0.03457745,191.11,191.07,4.18]
[1739713910179,0.03457745,191.11,191.07,25.11]
[1739713911380,0.03457745,191.11,191.08,0.96104293]
[1739713911582,0.03457745,191.11,191.08,5.80699152]
[1739713911781,0.03457745,191.11,191.08,4.84594859]
[1739713912281,0.03457745,191.11,191.09,4.84594859]
[1739713912683,0.03457745,191.11,191.1,4.84594859]
[1739713914383,1.34231965,191.11,191.1,2.31214859]
[1739713914585,1.34231965,191.11,191.1,1.38064859]
[1739713915487,1.34235445,191.11,191.1,1.38064859]
[1739713916485,0.03457745,191.11,191.1,1.38064859]
[1739713916888,0.03457745,191.11,191.1,19.00064859]
[1739713919292,0.03457745,191.11,191.1,17.62]
[1739713920392,0.03457745,191.11,191.1,38.55]
[1739713921093,103.93627931,191.23,191.1,38.55]
[1739713921295,107.33571415,191.22,191.1,38.55]
[1739713921490,3.39943484,191.21,191.1,38.55]
[1739713921690,103.93627931,191.22,191.1,38.55]
[1739713921691,3.39943484,191.2,191.1,38.55]
[1739713921890,3.39943484,191.19,191.1,38.55]
[1739713922090,3.39943484,191.18,191.1,38.55]
[1739713922292,0.03761353,191.16,191.13,0.03369263]
[1739713922492,1.30747494,191.15,191.13,0.03369263]
[1739713922687,1.30747494,191.14,191.13,0.03369263]
[1739713924195,0.03761353,191.16,191.13,0.03369263]
[1739713925399,1.30771475,191.15,191.13,0.03369263]
[1739713925598,0.03761353,191.16,191.13,0.03369263]
[1739713925800,1.30771567,191.15,191.13,0.03369263]
[1739713926001,0.03761353,191.16,191.13,0.03369263]
[1739713926202,1.30770682,191.15,191.13,0.03369263]
[1739713926400,0.03761353,191.16,191.13,0.03369263]
[1739713926598,1.30770682,191.15,191.13,0.03369263]
[1739713926799,0.03761353,191.16,191.13,0.03369263]
[1739713927102,1.30770607,191.15,191.13,0.03369263]
[1739713927297,0.03761353,191.16,191.13,0.03369263]
[1739713927499,1.30770566,191.15,191.13,0.03369263]
[1739713927692,0.03761353,191.16,191.13,0.03369263]
[1739713927892,1.30771829,191.15,191.13,0.03369263]
[1739713928102,0.03761353,191.16,191.13,0.03369263]
[1739713928298,1.30771809,191.15,191.13,0.03369263]
[1739713928595,0.03761353,191.16,191.14,19.61221935]
[1739713929501,0.03761353,191.16,191.14,23.79221935]
[1739713929702,0.03761353,191.16,191.14,4.18]
[1739713940613,1.30759629,191.15,191.14,4.18]
[1739713942416,0.03761353,191.16,191.14,4.18]
[1739713942616,1.3076634,191.15,191.14,4.18]
[1739713944519,1.30766335,191.15,191.14,4.18]
[1739713950625,1.3076428,191.15,191.14,4.18]
[1739713952121,1.30764122,191.15,191.14,4.18]
[1739713954022,1.30787488,191.15,191.13,4.21369263]
[1739713954225,1.30787488,191.14,191.13,4.21369263]
[1739713956027,1.3078498,191.14,191.13,4.21369263]
[1739713958427,1.30787704,191.14,191.13,4.21369263]
[1739713959028,0.03761353,191.16,191.14,16.30212296]
[1739713960129,0.03761353,191.16,191.13,0.03369263]
[1739713961233,0.03761353,191.16,191.14,4.18]
[1739713967327,0.03761353,191.16,191.14,2.3447]
[1739713967531,0.03761353,191.16,191.1,1e-08]
[1739713968132,0.03761353,191.16,191.02,16.31]
[1739713968333,35.30525086,191.18,191.02,16.31]
[1739713968731,0.03520713,191.12,191.08,0.03568251]
[1739713971129,1.30864756,191.11,191.08,0.03568251]
[1739713971325,1.30864756,191.1,191.08,0.03568251]
[1739713971530,1.30864756,191.09,191.08,0.03568251]
[1739713971932,1.30864756,191.09,191.03,4.18]
[1739713972134,1.30864756,191.08,191.03,4.18]
[1739713972435,1.30864756,191.07,191.03,4.18]
[1739713972635,1.30864756,191.06,191.03,4.18]
[1739713972835,1.30864756,191.05,191.03,4.18]
[1739713973038,1.30864756,191.04,191.03,4.2183646]
[1739713973732,0.033972,191.05,191.03,4.2183646]
[1739713974036,1.30868805,191.04,191.03,4.2183646]
[1739713975233,1.3088655,191.04,191.03,4.2183646]
[1739713978343,1.3088655,191.02,190.96,16.31]
[1739713978554,1.3088655,191.01,190.96,16.31]
[1739713978843,101.30393747,191.03,190.96,16.31]
[1739713979039,0.03832986,191.0,190.97,0.03569913]
[1739713979236,0.03832986,191.0,190.97,1.49569913]
[1739713981240,85.59393747,191.04,190.97,1.49569913]
[1739713982454,0.03582259,191.02,190.97,1.49569913]
[1739713984157,193.0,191.01,190.97,1.49569913]
[1739713984351,193.0,191.0,190.97,1.49569913]
[1739713984547,193.0,190.99,190.97,1.49569913]
[1739713984854,193.0,190.98,190.97,1.49569913]
[1739713985254,0.03582259,191.02,190.97,1.49569913]
[1739713985454,1.3092008,191.01,190.97,1.49569913]
[1739713985650,1.3092008,191.0,190.97,1.49569913]
[1739713985855,1.3092008,190.99,190.97,1.49569913]
[1739713986051,0.03582259,191.02,190.97,1.49569913]
[1739713986255,1.30923161,191.01,190.97,1.49569913]